fUSD/lending_fUSD_20250221
["ID","MTS","AMOUNT","RATE_DAILY","PERIOD"]
[353928897,1740153033302,-500.0,0.00013424,2]
[353928898,1740153033311,-500.0,0.00013424,2]
[353928899,1740153033322,-208.76,0.00013424,2]
[353928900,1740153033331,-500.0,0.00013424,2]
[353928901,1740153033341,-500.0,0.00013424,2]
[353928902,1740153033351,-500.0,0.00013424,2]
[353928903,1740153033361,-500.0,0.00013424,2]
[353928904,1740153033371,-500.0,0.00013424,2]
[353928905,1740153033381,-500.0,0.00013424,2]
[353928906,1740153033395,-500.0,0.00013424,2]
[353928907,1740153033405,-500.0,0.00013424,2]
[353928908,1740153033414,-500.0,0.00013424,2]
[353928909,1740153033424,-500.0,0.00013424,2]
[353928910,1740153033433,-500.0,0.00013424,2]
[353928911,1740153033443,-500.0,0.00013424,2]
[353928912,1740153033453,-500.0,0.00013424,2]
[353928913,1740153033463,-500.0,0.00013424,2]
[353928914,1740153033473,-500.0,0.00013424,2]
[353928915,1740153033483,-500.0,0.00013424,2]
[353928916,1740153033493,-508.29993625,0.00013424,2]
[353928917,1740153033503,-243.15546663,0.00013424,2]
[353928918,1740153033520,-256.84453337,0.00013424,2]
[353928919,1740153033531,-66.18024302,0.00013424,2]
[353928932,1740153037867,-2500.0,0.00013324,2]
[353928934,1740153037878,-433.81975698,0.00013424,2]
[353928936,1740153037890,-500.0,0.00013424,2]
[353928939,1740153037901,-500.0,0.00013424,2]
[353928942,1740153037910,-500.0,0.00013424,2]
[353928944,1740153037920,-500.0,0.00013424,2]
[353928946,1740153037930,-505.05187748,0.00013424,2]
[353928948,1740153037939,-500.0,0.00013424,2]
[353928950,1740153037949,-500.0,0.00013424,2]
[353928952,1740153037959,-267.67231323,0.00013424,2]
[353928954,1740153037971,-232.32768677,0.00013424,2]
[353928956,1740153037981,-500.0,0.00013424,2]
[353928958,1740153037991,-500.0,0.00013424,2]
[353928960,1740153038000,-500.0,0.00013424,2]
[353928962,1740153038011,-500.0,0.00013424,2]
[353928964,1740153038023,-500.0,0.00013424,2]
[353928965,1740153038032,-500.0,0.00013424,2]
[353928967,1740153038042,-500.0,0.00013424,2]
[353928969,1740153038051,-500.0,0.00013424,2]
[353928971,1740153038061,-500.0,0.00013424,2]
[353928973,1740153038071,-500.0,0.00013424,2]
[353928975,1740153038080,-500.0,0.00013424,2]
[353928977,1740153038089,-500.0,0.00013424,2]
[353928978,1740153038099,-500.0,0.00013424,2]
[353928979,1740153038108,-531.38,0.00013424,2]
[353928980,1740153038118,-500.0,0.00013424,2]
[353928981,1740153038127,-500.0,0.00013424,2]
[353928982,1740153038136,-500.0,0.00013424,2]
[353928983,1740153038148,-500.0,0.00013424,2]
[353928984,1740153038157,-500.0,0.00013424,2]
[353928985,1740153038166,-500.0,0.00013424,2]
[353928986,1740153038175,-500.0,0.00013424,2]
[353928987,1740153038185,-500.0,0.00013424,2]
[353928988,1740153038194,-500.0,0.00013424,2]
[353928989,1740153038204,-500.0,0.00013424,2]
[353928990,1740153038213,-500.0,0.00013424,2]
[353928991,1740153038223,-500.0,0.00013424,2]
[353928992,1740153038232,-500.0,0.00013424,2]
[353928993,1740153038242,-500.0,0.00013424,2]
[353928994,1740153038251,-500.0,0.00013424,2]
[353928995,1740153038261,-163.452945,0.00013424,2]
[353928996,1740153038271,-500.0,0.00013424,2]
[353928997,1740153038280,-500.0,0.00013424,2]
[353928998,1740153038290,-500.0,0.00013424,2]
[353928999,1740153038299,-579.0,0.00013424,2]
[353929000,1740153038308,-500.0,0.00013424,2]
[353929001,1740153038318,-500.0,0.00013424,2]
[353929002,1740153038484,-500.0,0.00013424,2]
[353929003,1740153038494,-159.192186,0.00013424,2]
[353929004,1740153038503,-500.0,0.00013424,2]
[353929005,1740153038512,-500.0,0.00013424,2]
[353929006,1740153038522,-604.18782229,0.00013424,2]
[353929007,1740153038532,-500.0,0.00013424,2]
[353929008,1740153038541,-159.647051,0.00013424,2]
[353929009,1740153038550,-500.0,0.00013424,2]
[353929010,1740153038560,-500.0,0.00013424,2]
[353929011,1740153038569,-152.68074,0.00013424,2]
[353929012,1740153038578,-500.0,0.00013424,2]
[353929014,1740153038587,-646.11,0.00013424,2]
[353929016,1740153038596,-544.63328972,0.00013424,2]
[353929018,1740153038605,-500.0,0.00013424,2]
[353929020,1740153038615,-500.0,0.00013424,2]
[353929022,1740153038625,-500.0,0.00013424,2]
[353929024,1740153038634,-500.0,0.00013424,2]
[353929026,1740153038647,-500.0,0.00013424,2]
[353929028,1740153038657,-536.5,0.00013424,2]
[353929030,1740153038666,-500.0,0.00013424,2]
[353929032,1740153038675,-500.0,0.00013424,2]
[353929034,1740153038684,-500.0,0.00013424,2]
[353929036,1740153038693,-500.0,0.00013424,2]
[353929038,1740153038702,-500.0,0.00013424,2]
[353929040,1740153038710,-500.0,0.00013424,2]
[353929042,1740153038719,-500.0,0.00013424,2]
[353929044,1740153038729,-500.0,0.00013424,2]
[353929046,1740153038738,-500.0,0.00013424,2]
[353929048,1740153038747,-500.0,0.00013424,2]
[353929050,1740153038756,-500.0,0.00013424,2]
[353929052,1740153038765,-500.0,0.00013424,2]
[353929054,1740153038775,-500.0,0.00013424,2]
[353929056,1740153038784,-500.0,0.00013424,2]
[353929058,1740153038793,-500.0,0.00013424,2]
[353929060,1740153038802,-500.0,0.00013424,2]
[353929062,1740153038811,-500.0,0.00013424,2]
[353929065,1740153038821,-500.0,0.00013424,2]
[353929068,1740153038831,-524.37,0.00013424,2]
[353929071,1740153038840,-500.0,0.00013424,2]
[353929074,1740153038850,-500.0,0.00013424,2]
[353929076,1740153038859,-500.90151274,0.00013424,2]
[353929078,1740153038868,-846.82,0.00013424,2]
[353929080,1740153038878,-589.84934147,0.00013424,2]
[353929082,1740153038887,-500.0,0.00013424,2]
[353929083,1740153038899,-500.0,0.00013424,2]
[353929085,1740153038908,-500.0,0.00013424,2]
[353929087,1740153038917,-505.14548056,0.00013424,2]
[353929089,1740153038926,-500.0,0.00013424,2]
[353929091,1740153038935,-500.0,0.00013424,2]
[353929093,1740153038944,-500.0,0.00013424,2]
[353929095,1740153038954,-500.9935282,0.00013424,2]
[353929097,1740153038963,-679.74,0.00013424,2]
[353929099,1740153038972,-542.49918923,0.00013424,2]
[353929101,1740153038983,-500.64852884,0.00013424,2]
[353929103,1740153038992,-500.0,0.00013424,2]
[353929105,1740153039002,-501.83506333,0.00013424,2]
[353929107,1740153039012,-500.0,0.00013424,2]
[353929109,1740153039021,-500.0,0.00013424,2]
[353929111,1740153039032,-500.0,0.00013424,2]
[353929113,1740153039041,-500.0,0.00013424,2]
[353929115,1740153039051,-501.29873366,0.00013424,2]
[353929117,1740153039061,-500.0,0.00013424,2]
[353929119,1740153039072,-500.0,0.00013424,2]
[353929121,1740153039082,-503.4784583,0.00013424,2]
[353929123,1740153039091,-500.0,0.00013424,2]
[353929125,1740153039101,-500.0,0.00013424,2]
[353929127,1740153039112,-500.0,0.00013424,2]
[353929129,1740153039122,-500.0,0.00013424,2]
[353929131,1740153039131,-726.25,0.00013424,2]
[353929133,1740153039144,-502.17212235,0.00013424,2]
[353929135,1740153039153,-500.0,0.00013424,2]
[353929137,1740153039162,-500.0,0.00013424,2]
[353929139,1740153039171,-500.0,0.00013424,2]
[353929141,1740153039180,-500.0,0.00013424,2]
[353929143,1740153039189,-500.0,0.00013424,2]
[353929145,1740153039199,-500.0,0.00013424,2]
[353929147,1740153039208,-500.0,0.00013424,2]
[353929149,1740153039218,-500.0,0.00013424,2]
[353929151,1740153039227,-500.0,0.00013424,2]
[353929153,1740153039237,-500.0,0.00013424,2]
[353929155,1740153039246,-501.70150771,0.00013424,2]
[353929157,1740153039255,-226.89223275,0.00013424,2]
[353929161,1740153039288,-273.10776725,0.00013424,2]
[353929163,1740153039297,-500.0,0.00013424,2]
[353929165,1740153039306,-500.0,0.00013424,2]
[353929167,1740153039315,-357.89223275,0.00013424,2]
[353929170,1740153039327,-142.10776725,0.00013424,2]
[353929172,1740153039336,-500.0,0.00013424,2]
[353929174,1740153039345,-500.0,0.00013424,2]
[353929176,1740153039355,-502.95514053,0.00013424,2]
[353929178,1740153039364,-304.240716,0.00013424,2]
[353929180,1740153039374,-500.0,0.00013424,2]
[353929182,1740153039383,-500.0,0.00013424,2]
[353929184,1740153039394,-500.0,0.00013424,2]
[353929186,1740153039403,-500.0,0.00013424,2]
[353929188,1740153039413,-500.0,0.00013424,2]
[353929190,1740153039423,-500.0,0.00013424,2]
[353929192,1740153039433,-500.0,0.00013424,2]
[353929194,1740153039442,-500.0,0.00013424,2]
[353929196,1740153039452,-500.0,0.00013424,2]
[353929198,1740153039461,-155.989016,0.00013424,2]
[353929200,1740153039470,-502.23849842,0.00013424,2]
[353929202,1740153039480,-500.0,0.00013424,2]
[353929204,1740153039489,-500.0,0.00013424,2]
[353929206,1740153039499,-546.7,0.00013424,2]
[353929208,1740153039508,-500.0,0.00013424,2]
[353929210,1740153039518,-500.0,0.00013424,2]
[353929212,1740153039528,-500.0,0.00013424,2]
[353929214,1740153039538,-500.0,0.00013424,2]
[353929216,1740153039548,-157.99011,0.00013424,2]
[353929218,1740153039558,-500.0,0.00013424,2]
[353929220,1740153039568,-500.0,0.00013424,2]
[353929222,1740153039578,-500.0,0.00013424,2]
[353929224,1740153039588,-500.0,0.00013424,2]
[353929226,1740153039598,-500.0,0.00013424,2]
[353929228,1740153039608,-961.78,0.00013424,2]
[353929230,1740153039617,-500.0,0.00013424,2]
[353929232,1740153039627,-506.82,0.00013424,2]
[353929234,1740153039636,-500.0,0.00013424,2]
[353929236,1740153039650,-500.0,0.00013424,2]
[353929238,1740153039659,-500.0,0.00013424,2]
[353929240,1740153039669,-500.0,0.00013424,2]
[353929241,1740153039678,-500.0,0.00013424,2]
[353929244,1740153039688,-500.0,0.00013424,2]
[353929246,1740153039697,-500.0,0.00013424,2]
[353929249,1740153039706,-500.0,0.00013424,2]
[353929251,1740153039716,-500.0,0.00013424,2]
[353929252,1740153039726,-500.0,0.00013424,2]
[353929254,1740153039736,-500.0,0.00013424,2]
[353929256,1740153039745,-500.0,0.00013424,2]
[353929258,1740153039755,-153.759185,0.00013424,2]
[353929260,1740153039764,-500.0,0.00013424,2]
[353929262,1740153039774,-539.35,0.00013424,2]
[353929264,1740153039783,-500.0,0.00013424,2]
[353929266,1740153039792,-500.0,0.00013424,2]
[353929268,1740153039801,-0.77146221,0.00013424,2]
[353929271,1740153039816,-499.22853779,0.00013424,2]
[353929273,1740153039825,-500.0,0.00013424,2]
[353929275,1740153039834,-500.0,0.00013424,2]
[353929277,1740153039843,-500.0,0.00013424,2]
[353929279,1740153039853,-500.0,0.00013424,2]
[353929281,1740153039862,-500.0,0.00013424,2]
[353929283,1740153039872,-500.0,0.00013424,2]
[353929285,1740153039881,-500.0,0.00013424,2]
[353929287,1740153039894,-500.0,0.00013424,2]
[353929289,1740153039903,-632.84,0.00013424,2]
[353929291,1740153039912,-500.0,0.00013424,2]
[353929293,1740153039922,-500.0,0.00013424,2]
[353929295,1740153039931,-236.04146221,0.00013424,2]
[353929297,1740153039943,-650.12853779,0.00013424,2]
[353929299,1740153039952,-520.85472154,0.00013424,2]
[353929301,1740153039961,-500.0,0.00013424,2]
[353929304,1740153039971,-500.0,0.00013424,2]
[353929306,1740153039981,-500.0,0.00013424,2]
[353929308,1740153039990,-399.20086278,0.00013424,2]
[353929320,1740153040109,-100.79913722,0.00013424,2]
[353929322,1740153040118,-500.0,0.00013424,2]
[353929324,1740153040127,-511.73,0.00013424,2]
[353929326,1740153040136,-349.94086278,0.00013424,2]
[353929329,1740153040151,-151.23590247,0.00013424,2]
[353929331,1740153040162,-183.03129696,0.00013424,2]
[353929333,1740153040173,-316.96870304,0.00013424,2]
[353929335,1740153040184,-145.4242406,0.00013424,2]
[353929337,1740153040195,-354.5757594,0.00013424,2]
[353929339,1740153040205,-500.0,0.00013424,2]
[353929341,1740153040215,-500.0,0.00013424,2]
[353929343,1740153040224,-500.0,0.00013424,2]
[353929345,1740153040233,-500.0,0.00013424,2]
[353929347,1740153040242,-500.0,0.00013424,2]
[353929349,1740153040259,-500.0,0.00013424,2]
[353929352,1740153040269,-331.29326662,0.00013424,2]
[353929353,1740153040278,-500.0,0.00013424,2]
[353929355,1740153040288,-500.0,0.00013424,2]
[353929357,1740153040298,-500.0,0.00013424,2]
[353929359,1740153040307,-500.0,0.00013424,2]
[353929362,1740153040317,-500.0,0.00013424,2]
[353929363,1740153040326,-500.0,0.00013424,2]
[353929365,1740153040335,-500.0,0.00013424,2]
[353929368,1740153040345,-500.0,0.00013424,2]
[353929370,1740153040355,-500.0,0.00013424,2]
[353929372,1740153040365,-500.0,0.00013424,2]
[353929374,1740153040375,-500.0,0.00013424,2]
[353929376,1740153040385,-505.3611789,0.00013424,2]
[353929378,1740153040400,-500.0,0.00013424,2]
[353929379,1740153040410,-500.0,0.00013424,2]
[353929381,1740153040420,-500.0,0.00013424,2]
[353929383,1740153040431,-500.0,0.00013424,2]
[353929385,1740153040441,-500.0,0.00013424,2]
[353929387,1740153040450,-500.0,0.00013424,2]
[353929389,1740153040459,-750.7,0.00013424,2]
[353929391,1740153040470,-500.0,0.00013424,7]
[353929393,1740153040480,-500.0,0.00013424,2]
[353929395,1740153040490,-500.0,0.00013424,2]
[353929398,1740153040501,-500.0,0.00013424,2]
[353929400,1740153040511,-500.0,0.00013424,2]
[353929402,1740153040521,-500.0,0.00013424,2]
[353929403,1740153040531,-500.0,0.00013424,2]
[353929405,1740153040541,-509.50893973,0.00013424,2]
[353929407,1740153040550,-500.0,0.00013424,2]
[353929417,1740153040677,-500.0,0.00013424,2]
[353929418,1740153040687,-500.0,0.00013424,2]
[353929419,1740153040697,-500.0,0.00013424,2]
[353929420,1740153040707,-500.0,0.00013424,2]
[353929421,1740153040716,-500.0,0.00013424,2]
[353929422,1740153040726,-500.0,0.00013424,2]
[353929424,1740153040735,-544.73,0.00013424,2]
[353929426,1740153040744,-500.0,0.00013424,2]
[353929428,1740153040753,-500.0,0.00013424,2]
[353929430,1740153040762,-500.0,0.00013424,2]
[353929432,1740153040771,-500.0,0.00013424,2]
[353929434,1740153040781,-500.0,0.00013424,2]
[353929436,1740153040790,-500.0,0.00013424,2]
[353929438,1740153040800,-500.0,0.00013424,2]
[353929440,1740153040809,-500.0,0.00013424,2]
[353929442,1740153040818,-500.0,0.00013424,2]
[353929444,1740153040827,-500.0,0.00013424,2]
[353929446,1740153040836,-567.83,0.00013424,2]
[353929448,1740153040846,-500.99212188,0.00013424,2]
[353929450,1740153040855,-500.0,0.00013424,2]
[353929452,1740153040864,-500.0,0.00013424,2]
[353929454,1740153040873,-500.0,0.00013424,2]
[353929456,1740153040882,-765.52,0.00013424,2]
[353929458,1740153040895,-500.0,0.00013424,2]
[353929460,1740153040903,-500.0,0.00013424,2]
[353929462,1740153040912,-378.92640139,0.00013424,2]
[353929464,1740153040927,-121.07359861,0.00013424,2]
[353929466,1740153040935,-500.0,0.00013424,2]
[353929468,1740153040945,-500.0,0.00013424,2]
[353929470,1740153040956,-500.0,0.00013424,2]
[353929472,1740153040965,-500.0,0.00013424,2]
[353929474,1740153040974,-500.0,0.00013424,2]
[353929476,1740153040985,-107.95434139,0.00013424,2]
[353929478,1740153040997,-216.48492082,0.00013424,2]
[353929480,1740153041007,-500.77888868,0.00013424,2]
[353929482,1740153041017,-500.0,0.00013424,2]
[353929484,1740153041026,-500.0,0.00013424,2]
[353929486,1740153041039,-560.54,0.00013424,2]
[353929488,1740153041047,-503.56618,0.00013424,2]
[353929490,1740153041057,-500.0,0.00013424,2]
[353929491,1740153041066,-500.0,0.00013424,2]
[353929492,1740153041076,-317.2000105,0.00013424,2]
[353929493,1740153041088,-182.7999895,0.00013424,2]
[353929494,1740153041097,-500.0,0.00013424,2]
[353929495,1740153041107,-153.759185,0.00013424,2]
[353929496,1740153041115,-500.0,0.00013424,2]
[353929497,1740153041124,-500.0,0.00013424,2]
[353929498,1740153041134,-500.0,0.00013424,2]
[353929499,1740153041148,-500.0,0.00013424,2]
[353929500,1740153041157,-500.0,0.00013424,2]
[353929501,1740153041166,-500.0,0.00013424,2]
[353929503,1740153041176,-843.76,0.00013424,2]
[353929505,1740153041185,-500.0,0.00013424,2]
[353929507,1740153041195,-57.7447675,0.00013424,2]
[353929509,1740153041207,-442.2552325,0.00013424,2]
[353929511,1740153041216,-500.0,0.00013424,2]
[353929513,1740153041224,-500.0,0.00013424,2]
[353929515,1740153041234,-500.0,0.00013424,2]
[353929517,1740153041243,-500.0,0.00013424,2]
[353929519,1740153041252,-500.0,0.00013424,2]
[353929521,1740153041262,-500.0,0.00013424,2]
[353929523,1740153041271,-500.0,0.00013424,2]
[353929525,1740153041280,-500.0,0.00013424,2]
[353929527,1740153041289,-500.0,0.00013424,2]
[353929529,1740153041299,-45.6877275,0.00013424,2]
[353929531,1740153041310,-454.3122725,0.00013424,2]
[353929533,1740153041320,-500.0,0.00013424,2]
[353929535,1740153041329,-473.67830068,0.00013424,2]
[353929538,1740153041341,-26.32169932,0.00013424,2]
[353929540,1740153041351,-500.0,0.00013424,2]
[353929542,1740153041360,-540.19,0.00013424,2]
[353929544,1740153041369,-613.65,0.00013424,2]
[353929546,1740153041378,-399.7519992,0.00013424,2]
[353929560,1740153041517,-105.664836,0.00013424,2]
[353929562,1740153041527,-500.86304981,0.00013424,2]
[353929564,1740153041536,-500.0,0.00013424,2]
[353929566,1740153041546,-391.82950082,0.00013424,2]
[353929568,1740153041557,-108.17049918,0.00013424,2]
[353929570,1740153041567,-500.0,0.00013424,2]
[353929572,1740153041577,-500.0,0.00013424,2]
[353929574,1740153041586,-500.0,0.00013424,2]
[353929576,1740153041595,-500.0,0.00013424,2]
[353929578,1740153041604,-505.78,0.00013424,2]
[353929580,1740153041613,-521.99,0.00013424,2]
[353929582,1740153041623,-500.0,0.00013424,2]
[353929584,1740153041632,-500.0,0.00013424,2]
[353929586,1740153041645,-499.72381361,0.00013424,2]
[353929588,1740153041653,-239.33568721,0.00013424,2]
[353929590,1740153041665,-436.24431279,0.00013424,2]
[353929592,1740153041675,-500.52488688,0.00013424,2]
[353929594,1740153041684,-500.0,0.00013424,2]
[353929596,1740153041694,-500.0,0.00013424,2]
[353929598,1740153041703,-500.0,0.00013424,2]
[353929600,1740153041712,-500.0,0.00013424,2]
[353929602,1740153041721,-500.0,0.00013424,2]
[353929604,1740153041731,-500.0,0.00013424,2]
[353929606,1740153041739,-500.0,0.00013424,2]
[353929608,1740153041749,-500.0,0.00013424,2]
[353929610,1740153041758,-500.0,0.00013424,2]
[353929612,1740153041768,-500.0,0.00013424,2]
[353929614,1740153041777,-500.0,0.00013424,2]
[353929616,1740153041787,-500.0,0.00013424,2]
[353929618,1740153041796,-511.48448514,0.00013424,2]
[353929620,1740153041805,-440.47362926,0.00013424,2]
[353929622,1740153041814,-500.0,0.00013424,2]
[353929624,1740153041823,-500.0,0.00013424,2]
[353929626,1740153041832,-500.0,0.00013424,2]
[353929628,1740153041841,-500.0,0.00013424,2]
[353929630,1740153041850,-431.27268593,0.00013424,2]
[353929632,1740153041863,-68.72731407,0.00013424,2]
[353929634,1740153041872,-500.0,0.00013424,2]
[353929636,1740153041881,-500.0,0.00013424,2]
[353929638,1740153041893,-363.32394772,0.00013424,2]
[353929640,1740153041905,-136.67605228,0.00013424,2]
[353929642,1740153041914,-316.39550667,0.00013424,2]
[353929669,1740153042172,-183.60449333,0.00013424,2]
[353929671,1740153042183,-500.0,0.00013424,2]
[353929673,1740153042192,-258.8607447,0.00013424,2]
[353929675,1740153042204,-241.1392553,0.00013424,2]
[353929677,1740153042213,-197.54135927,0.00013424,2]
[353929679,1740153042225,-302.45864073,0.00013424,2]
[353929681,1740153042234,-451.24086165,0.00013424,2]
[353929683,1740153042245,-48.75913835,0.00013424,2]
[353929685,1740153042255,-500.0,0.00013424,2]
[353929687,1740153042263,-182.14709527,0.00013424,2]
[353929690,1740153042275,-317.85290473,0.00013424,2]
[353929692,1740153042284,-500.0,0.00013424,2]
[353929694,1740153042293,-123.82709527,0.00013424,2]
[353929696,1740153042305,-376.17290473,0.00013424,2]
[353929698,1740153042314,-500.0,0.00013424,2]
[353929700,1740153042323,-236.93659686,0.00013424,2]
[353929703,1740153042340,-263.06340314,0.00013424,2]
[353929705,1740153042350,-500.0,0.00013424,2]
[353929707,1740153042360,-500.56871475,0.00013424,2]
[353929709,1740153042369,-500.0,0.00013424,2]
[353929711,1740153042378,-193.86788211,0.00013424,2]
[353929713,1740153042391,-306.13211789,0.00013424,2]
[353929715,1740153042400,-500.0,0.00013424,2]
[353929717,1740153042410,-500.0,0.00013424,2]
[353929719,1740153042420,-500.0,0.00013424,2]
[353929721,1740153042429,-333.76360766,0.00013424,2]
[353929723,1740153042441,-166.23639234,0.00013424,2]
[353929725,1740153042451,-221.63572467,0.00013424,2]
[353929727,1740153042463,-278.36427533,0.00013424,2]
[353929741,1740153042484,-319.04430055,0.00013424,2]
[353929744,1740153042613,-500.0,0.00013424,2]
[353929746,1740153042623,-500.0,0.00013424,2]
[353929747,1740153042633,-501.81776813,0.00013424,2]
[353929749,1740153042645,-500.0,0.00013424,2]
[353929751,1740153042654,-500.0,0.00013424,2]
[353929753,1740153042663,-500.0,0.00013424,2]
[353929755,1740153042673,-505.93038607,0.00013424,2]
[353929757,1740153042682,-500.0,0.00013424,2]
[353929759,1740153042692,-500.0,0.00013424,2]
[353929761,1740153042701,-500.0,0.00013424,2]
[353929763,1740153042711,-500.0,0.00013424,2]
[353929765,1740153042720,-500.0,0.00013424,2]
[353929767,1740153042730,-500.0,0.00013424,2]
[353929769,1740153042739,-601.05,0.00013424,2]
[353929771,1740153042748,-500.0,0.00013424,2]
[353929773,1740153042757,-277.38015964,0.00013424,2]
[353929775,1740153042766,-253.32144283,0.00013424,2]
[353929777,1740153042776,-500.0,0.00013424,2]
[353929779,1740153042784,-500.0,0.00013424,2]
[353929782,1740153042793,-708.79,0.00013424,2]
[353929784,1740153042802,-500.0,0.00013424,2]
[353929787,1740153042812,-500.0,0.00013424,2]
[353929789,1740153042820,-500.0,0.00013424,2]
[353929791,1740153042829,-500.0,0.00013424,2]
[353929793,1740153042840,-500.0,0.00013424,2]
[353929796,1740153042849,-500.0,0.00013424,2]
[353929799,1740153042858,-500.0,0.00013424,2]
[353929802,1740153042867,-500.0,0.00013424,2]
[353929805,1740153042876,-592.74283875,0.00013424,2]
[353929808,1740153042885,-388.95674528,0.00013424,2]
[353929811,1740153042897,-500.0,0.00013424,2]
[353929814,1740153042907,-500.0,0.00013424,2]
[353929818,1740153042917,-500.0,0.00013424,2]
[353929822,1740153042927,-500.0,0.00013424,2]
[353929824,1740153042936,-500.0,0.00013424,2]
[353929827,1740153042946,-500.0,0.00013424,2]
[353929830,1740153042955,-500.0,0.00013424,2]
[353929832,1740153042965,-500.0,0.00013424,2]
[353929834,1740153042974,-500.0,0.00013424,2]
[353929837,1740153042986,-543.35,0.00013424,2]
[353929840,1740153042995,-500.0,0.00013424,2]
[353929843,1740153043005,-500.0,0.00013424,2]
[353929846,1740153043014,-500.0,0.00013424,2]
[353929849,1740153043027,-500.0,0.00013424,2]
[353929852,1740153043042,-500.0,0.00013424,2]
[353929855,1740153043051,-468.26678353,0.00013424,2]
[353929857,1740153043060,-173.30957421,0.00013424,2]
[353929859,1740153043070,-500.0,0.00013424,2]
[353929860,1740153043079,-500.0,0.00013424,2]
[353929862,1740153043088,-500.0,0.00013424,2]
[353929864,1740153043098,-500.0,0.00013424,2]
[353929867,1740153043107,-500.0,0.00013424,2]
[353929868,1740153043117,-500.0,0.00013424,2]
[353929870,1740153043127,-500.0,0.00013424,2]
[353929872,1740153043136,-500.0,0.00013424,2]
[353929874,1740153043148,-500.0,0.00013424,2]
[353929876,1740153043158,-501.85534149,0.00013424,2]
[353929878,1740153043169,-500.0,0.00013424,2]
[353929880,1740153043178,-500.0,0.00013424,2]
[353929882,1740153043188,-595.98482865,0.00013424,2]
[353929884,1740153043197,-500.0,0.00013424,2]
[353929886,1740153043207,-502.52454328,0.00013424,2]
[353929889,1740153043218,-500.0,0.00013424,2]
[353929891,1740153043227,-500.0,0.00013424,2]
[353929893,1740153043241,-503.6419964,0.00013424,2]
[353929895,1740153043253,-500.0,0.00013424,2]
[353929897,1740153043263,-500.0,0.00013424,2]
[353929899,1740153043272,-500.0,0.00013424,2]
[353929900,1740153043281,-500.0,0.00013424,2]
[353929902,1740153043290,-500.0,0.00013424,2]
[353929905,1740153043299,-500.0,0.00013424,2]
[353929907,1740153043309,-564.98,0.00013424,2]
[353929908,1740153043318,-500.0,0.00013424,2]
[353929911,1740153043328,-679.45,0.00013424,2]
[353929912,1740153043337,-500.0,0.00013424,2]
[353929914,1740153043346,-500.0,0.00013424,2]
[353929916,1740153043356,-500.0,0.00013424,2]
[353929918,1740153043365,-500.0,0.00013424,2]
[353929920,1740153043374,-565.85,0.00013424,2]
[353929922,1740153043383,-500.0,0.00013424,2]
[353929924,1740153043393,-500.0,0.00013424,2]
[353929926,1740153043403,-503.49231628,0.00013424,2]
[353929928,1740153043413,-500.0,0.00013424,2]
[353929930,1740153043422,-500.0,0.00013424,2]
[353929932,1740153043431,-500.0,0.00013424,2]
[353929934,1740153043441,-500.0,0.00013424,2]